bitfinex-derivatives/quotes_BTCF0:USTF0_20260207
["timestamp","ask_amount","ask_price","bid_price","bid_amount"]
[1770423897650,0.01,70439.0,70421.0,0.35413811]
[1770423897846,0.01,70439.0,70422.0,0.35413811]
[1770423898249,0.014209,70438.0,70422.0,0.35413811]
[1770423898449,0.23,70438.0,70421.0,0.35413811]
[1770423898851,0.23,70438.0,70422.0,0.35413811]
[1770423899051,0.23,70438.0,70423.0,0.35413811]
[1770423899248,0.23,70438.0,70421.0,0.35413811]
[1770423899449,0.01421,70434.0,70420.0,0.35413811]
[1770423899753,0.26,70434.0,70421.0,0.35413811]
[1770423899956,0.26,70434.0,70422.0,0.35413811]
[1770423900154,0.26,70434.0,70423.0,0.35413811]
[1770423900354,0.26,70434.0,70424.0,0.35413811]
[1770423900952,0.26,70434.0,70431.0,1.1e-07]
[1770423901150,0.26,70434.0,70414.0,0.58128975]
[1770423901853,0.26,70434.0,70414.0,0.014214]
[1770423902250,0.26,70434.0,70416.0,0.014213]
[1770423902449,0.26,70434.0,70421.0,0.42482747]
[1770423903153,0.27421,70434.0,70421.0,0.42482747]
[1770423903754,0.26,70434.0,70421.0,0.42482747]
[1770423904055,0.261,70434.0,70421.0,0.42482747]
[1770423904258,0.261,70434.0,70422.0,0.42482747]
[1770423904750,0.26,70434.0,70422.0,0.42482747]
[1770423905658,0.26,70434.0,70417.0,0.014213]
[1770423906050,0.01421,70433.0,70412.0,0.42482747]
[1770423906251,0.014209,70429.0,70412.0,0.42482747]
[1770423906559,0.014209,70429.0,70408.0,0.014213]
[1770423906560,0.274209,70429.0,70408.0,0.014213]
[1770423906754,0.01421,70427.0,70408.0,0.014213]
[1770423906954,0.28421,70427.0,70408.0,0.014213]
[1770423907353,0.27,70427.0,70410.0,0.014213]
[1770423907553,0.03,70427.0,70412.0,0.014213]
[1770423907760,0.03,70427.0,70414.0,0.014212]
[1770423908754,0.01,70427.0,70418.0,0.59309454]
[1770423908959,0.02,70427.0,70418.0,0.59309454]
[1770423909150,0.014208,70438.0,70420.0,0.014211]
[1770423909348,0.094208,70438.0,70420.0,0.014211]
[1770423909655,0.08,70438.0,70424.0,0.57725437]
[1770423909954,0.01823687,70466.0,70437.0,0.57725437]
[1770423910155,0.014205,70452.0,70441.0,0.35400068]
[1770423910361,0.164205,70452.0,70441.0,0.05200068]
[1770423910655,0.014205,70450.0,70429.0,0.43903647]
[1770423910952,0.154205,70450.0,70429.0,0.43903647]
[1770423911551,0.274205,70450.0,70429.0,0.43903647]
[1770423912362,0.014207,70442.0,70427.0,0.42482747]
[1770423912557,0.274207,70442.0,70427.0,0.42482747]
[1770423912855,0.274207,70442.0,70421.0,0.014211]
[1770423914961,0.26,70442.0,70427.0,0.01421]
[1770423915457,0.26,70442.0,70420.0,0.42482747]
[1770423915458,0.05,70442.0,70421.0,0.014211]
[1770423915662,0.05,70442.0,70423.0,0.42482747]
[1770423916462,0.05,70442.0,70425.0,0.01421]
[1770423916662,0.23,70442.0,70425.0,0.01421]
[1770423916859,0.23,70442.0,70422.0,0.43903847]
[1770423917063,0.014207,70438.0,70422.0,0.42482747]
[1770423917263,0.014208,70436.0,70419.0,0.42482747]
[1770423917466,0.05199844,70435.0,70419.0,0.42482747]
[1770423917764,0.05199844,70434.0,70413.0,0.42482747]
[1770423917962,0.30199844,70434.0,70411.0,0.42482747]
[1770423918164,0.05199844,70433.0,70411.0,0.42482747]
[1770423918365,0.014209,70432.0,70413.0,0.014212]
[1770423918564,0.264209,70432.0,70413.0,0.014212]
[1770423919461,0.264209,70432.0,70420.0,0.35407401]
[1770423919658,0.07364163,70431.0,70420.0,0.35407401]
[1770423919858,0.00597904,70430.0,70420.0,0.35407401]
[1770423920060,0.27018804,70430.0,70428.0,1e-08]
[1770423920256,0.25597904,70430.0,70422.0,0.42482747]
[1770423920867,0.25597904,70430.0,70420.0,0.42582747]
[1770423921371,0.11,70445.0,70425.0,0.01421]
[1770423921669,0.06,70445.0,70422.0,0.5477875]
[1770423921860,0.014207,70440.0,70422.0,0.5477875]
[1770423922163,0.084207,70440.0,70422.0,0.5477875]
[1770423922464,0.264207,70440.0,70422.0,0.5477875]
[1770423923166,0.264207,70440.0,70422.0,0.5467875]
[1770423923570,0.05,70440.0,70422.0,0.5467875]
[1770423923964,0.014207,70439.0,70420.0,0.014211]
[1770423924268,0.08,70439.0,70422.0,0.014211]
[1770423924859,0.25,70439.0,70422.0,0.014211]
[1770423925766,0.014208,70434.0,70419.0,0.42482747]
[1770423925971,0.274208,70434.0,70415.0,0.42482747]
[1770423926666,0.274208,70434.0,70415.0,0.43903947]
[1770423927067,0.26,70434.0,70423.0,0.01421]
[1770423927265,0.26,70434.0,70420.0,0.014211]
[1770423928374,0.261,70434.0,70420.0,0.014211]
[1770423928679,0.261,70434.0,70421.0,0.014211]
[1770423929170,0.261,70434.0,70428.0,0.35452396]
[1770423929673,0.26,70434.0,70428.0,0.35452396]
[1770423930078,0.32167947,70431.0,70420.0,0.42482747]
[1770423930269,0.014209,70430.0,70420.0,0.42482747]
[1770423930467,0.014209,70430.0,70411.0,0.019213]
[1770423930468,0.254209,70430.0,70415.0,0.42482747]
[1770423930874,0.254209,70430.0,70413.0,0.42482747]
[1770423931278,0.06,70430.0,70423.0,0.42482747]
[1770423931478,0.07,70430.0,70423.0,0.42482747]
[1770423931675,0.07,70430.0,70420.0,0.42482747]
[1770423931979,0.01421,70427.0,70412.0,0.56707575]
[1770423932278,0.08421,70427.0,70408.0,0.56707575]
[1770423932473,0.24,70427.0,70408.0,0.56707575]
[1770423932681,0.24,70427.0,70409.0,0.014213]
[1770423935376,0.24,70427.0,70411.0,0.014213]
[1770423936283,0.24,70427.0,70418.0,0.58152529]
[1770423936581,0.02,70427.0,70419.0,0.014211]
[1770423936776,0.02,70427.0,70418.0,0.58152529]
[1770423936976,0.0054241,70440.0,70420.0,0.014211]
[1770423937173,0.0754241,70440.0,70418.0,0.58152529]
[1770423937378,0.0754241,70440.0,70424.0,0.01421]
[1770423937573,0.08,70440.0,70424.0,0.01421]
[1770423937785,0.24,70440.0,70424.0,0.01421]
[1770423938082,0.24,70440.0,70424.0,0.59563378]
[1770423938283,0.03589782,70440.0,70436.0,0.56182155]
[1770423938587,0.03589782,70440.0,70428.0,0.014209]
[1770423938982,0.06589782,70440.0,70422.0,0.56182155]
[1770423939175,0.1,70455.0,70438.0,0.57602855]
[1770423939487,0.07,70455.0,70438.0,0.57602855]
[1770423939781,0.07,70455.0,70438.0,0.56182155]
[1770423940082,0.24,70455.0,70444.0,0.014206]
[1770423942587,0.07,70455.0,70444.0,0.36861951]
[1770423942888,0.04,70455.0,70445.0,0.56182155]
[1770423943074,0.014202,70464.0,70445.0,0.56182155]
[1770423943277,0.084202,70464.0,70445.0,0.56182155]
[1770423943477,0.07,70464.0,70445.0,0.56182155]
[1770423943676,0.24,70464.0,70445.0,0.56182155]
[1770423943885,0.29655385,70461.0,70437.0,0.56182155]
[1770423944080,0.014204,70457.0,70437.0,0.57602955]
[1770423944282,0.264204,70457.0,70437.0,0.56182155]
[1770423945076,0.25,70457.0,70438.0,0.014207]
[1770423946688,0.25,70457.0,70433.0,0.42531036]
[1770423946689,0.31219488,70454.0,70433.0,0.42531036]
[1770423946889,0.014205,70452.0,70433.0,0.42531036]
[1770423947187,0.264205,70452.0,70432.0,0.43951936]
[1770423947388,0.25,70452.0,70432.0,0.43951936]
[1770423947893,0.25,70452.0,70435.0,0.014208]
[1770423948679,0.251,70452.0,70435.0,0.014208]
[1770423949494,0.25,70452.0,70435.0,0.014208]
[1770423949788,0.25,70452.0,70432.0,0.014209]
[1770423949983,0.3258436,70450.0,70428.0,0.56182155]
[1770423950187,0.3116386,70449.0,70428.0,0.56182155]
[1770423950390,0.3116386,70448.0,70428.0,0.57603055]
[1770423950589,0.5516386,70448.0,70434.0,0.014208]
[1770423950785,0.31404883,70427.0,70416.0,0.21797875]
[1770423950989,0.11227363,70427.0,70416.0,0.21797875]
[1770423951287,0.01421,70426.0,70416.0,0.21797875]
[1770423951493,0.01421,70426.0,70395.0,0.58333333]
[1770423951494,0.25227363,70426.0,70400.0,0.014215]
[1770423952290,0.25227363,70426.0,70395.0,0.58333333]
[1770423952485,0.25227363,70426.0,70398.0,0.58333333]
[1770423952686,0.01451125,70425.0,70398.0,0.58333333]
[1770423952995,0.01451125,70422.0,70398.0,0.58333333]
[1770423953293,0.24678488,70422.0,70402.0,0.014215]
[1770423953794,0.26099588,70422.0,70402.0,0.014215]
[1770423954396,0.01451125,70421.0,70395.0,0.014216]
[1770423954695,0.02872425,70412.0,70391.0,0.014217]
[1770423954894,0.24678488,70412.0,70391.0,0.014217]
[1770423955492,0.01148088,70411.0,70389.0,0.57849624]
[1770423955699,0.01148088,70408.0,70379.0,0.57950637]
[1770423955890,0.01148088,70407.0,70379.0,0.57950637]
[1770423956086,5.1e-07,70407.0,70401.0,0.014215]
[1770423956288,0.014207,70441.0,70418.0,0.014211]
[1770423956494,0.08,70441.0,70427.0,0.01421]
[1770423956697,0.08,70441.0,70393.0,0.014216]
[1770423956698,0.08,70441.0,70429.0,0.014209]
[1770423957093,0.08,70441.0,70431.0,0.014209]
[1770423957299,0.27,70441.0,70418.0,0.57842816]
[1770423957495,0.27,70441.0,70427.0,0.01421]
[1770423958088,0.27,70441.0,70431.0,0.014209]
[1770423958294,0.27,70441.0,70433.0,0.014208]
[1770423958501,0.27,70441.0,70410.0,0.14128551]
[1770423958502,0.0147155,70455.0,70429.0,0.57842816]
[1770423958695,0.0147155,70455.0,70423.0,0.01421]
[1770423958696,0.0847155,70455.0,70432.0,0.57165775]
[1770423958902,0.0847155,70455.0,70436.0,0.014208]
[1770423959796,0.2547155,70455.0,70432.0,0.57165775]
[1770423960002,0.24,70455.0,70432.0,0.57165775]
[1770423960308,0.04,70470.0,70454.0,0.014204]
[1770423960495,0.02,70470.0,70454.0,0.014204]
[1770423960696,0.03502672,70482.0,70462.0,0.014203]
[1770423960895,0.04502672,70482.0,70465.0,0.014202]
[1770423961105,0.04502672,70482.0,70446.0,0.014206]
[1770423961106,0.0002,70523.0,70491.0,0.56612513]
[1770423961311,0.0516246,70522.0,70492.0,0.014197]
[1770423961606,0.0516246,70521.0,70491.0,0.58032213]
[1770423961795,0.0516246,70512.0,70488.0,0.35350352]
[1770423961998,0.0516246,70501.0,70480.0,0.35350352]
[1770423962199,0.0516246,70493.0,70457.0,0.56612513]
[1770423962400,0.23,70493.0,70472.0,0.0142]
[1770423962595,0.23,70493.0,70476.0,0.0142]
[1770423963103,0.23,70493.0,70471.0,0.58328965]
[1770423963303,0.23,70493.0,70479.0,0.014199]
[1770423963610,0.01,70493.0,70479.0,0.014199]
[1770423963805,0.04,70493.0,70479.0,0.014199]
[1770423964007,0.04,70493.0,70474.0,0.58328865]
[1770423964906,0.06,70493.0,70488.0,0.04150041]
[1770423965107,0.23,70493.0,70474.0,0.58328865]
[1770423965301,0.23,70493.0,70477.0,0.014199]
[1770423965702,0.23,70493.0,70474.0,0.56908865]
[1770423966907,0.23,70493.0,70470.0,0.14128551]
[1770423967307,0.23,70493.0,70471.0,0.014201]
[1770423968303,0.23,70493.0,70492.0,9e-07]
[1770423968498,0.23,70493.0,70471.0,0.014201]
[1770423969508,0.23,70493.0,70474.0,0.0142]
[1770423970111,0.23,70493.0,70470.0,0.71633782]
[1770423970310,0.23,70493.0,70479.0,0.014199]
[1770423970499,0.03,70493.0,70479.0,0.58925131]
[1770423970703,0.02484304,70513.0,70486.0,0.014198]
[1770423970909,0.09484304,70513.0,70503.0,0.16842894]
[1770423971107,0.09484304,70513.0,70505.0,0.16842894]
[1770423971410,0.02503117,70523.0,70505.0,0.014194]
[1770423971709,0.21,70523.0,70511.0,0.35087463]
[1770423971909,0.21,70523.0,70510.0,0.35087463]
[1770423972311,0.21,70523.0,70511.0,0.35087463]
[1770423973510,0.09030187,70522.0,70509.0,0.28930357]
[1770423973811,0.34030187,70522.0,70501.0,0.014195]
[1770423974008,0.34030187,70522.0,70498.0,0.9916948]
[1770423974210,0.34030187,70522.0,70499.0,0.014195]
[1770423974601,0.34030187,70522.0,70498.0,0.567275]
[1770423974804,0.34030187,70522.0,70505.0,0.014194]
[1770423975113,0.34030187,70522.0,70510.0,0.27981431]
[1770423975311,0.34030187,70522.0,70498.0,0.567275]
[1770423975312,0.34030187,70522.0,70509.0,0.27981431]
[1770423976215,0.25,70522.0,70508.0,0.27981431]
[1770423976412,0.05883639,70521.0,70512.0,9.2e-07]
[1770423976714,0.05883639,70521.0,70487.0,0.014198]
[1770423976715,0.00066182,70517.0,70487.0,0.014198]
[1770423976912,0.00066182,70517.0,70484.0,0.4244198]
[1770423976913,0.00066182,70496.0,70484.0,0.4244198]
[1770423977111,0.06,70496.0,70474.0,0.4244198]
[1770423977413,0.25,70496.0,70474.0,0.4244198]
[1770423977616,0.25,70496.0,70473.0,0.0142]
[1770423981021,0.25,70496.0,70460.0,0.56595178]
[1770423981022,0.014199,70479.0,70460.0,0.56595178]
[1770423981221,0.26077105,70479.0,70460.0,0.56595178]
[1770423981418,0.26077105,70479.0,70454.0,0.56595178]
[1770423981620,0.26077105,70479.0,70454.0,1.14928511]
[1770423981923,0.26077105,70479.0,70467.0,0.014201]
[1770423982215,0.26077105,70479.0,70469.0,0.014201]
[1770423982421,0.12,70494.0,70477.0,0.014199]
[1770423982721,0.06,70494.0,70483.0,0.35001205]
[1770423983422,0.06,70494.0,70487.0,0.33001205]
[1770423983622,0.25,70494.0,70475.0,0.0142]
[1770423983827,0.25,70494.0,70460.0,0.14128551]
[1770423983828,0.25,70494.0,70480.0,0.014199]
[1770423984221,0.25,70494.0,70470.0,0.58333333]
[1770423984423,0.25,70494.0,70479.0,0.014199]
[1770423984924,0.25,70494.0,70481.0,0.014199]
[1770423985428,0.25,70494.0,70478.0,0.014199]
[1770423985823,0.25,70494.0,70475.0,0.0142]
[1770423986324,0.264196,70494.0,70472.0,0.56595178]
[1770423986530,0.014197,70492.0,70472.0,0.56595178]
[1770423986823,0.014199,70483.0,70472.0,0.56513619]
[1770423987128,0.014199,70482.0,70462.0,0.70884468]
[1770423987327,0.014199,70480.0,70462.0,0.70884468]
[1770423987527,0.0142,70478.0,70470.0,0.70884468]
[1770423987716,0.1042,70478.0,70470.0,0.70884468]
[1770423987922,0.01,70478.0,70470.0,1.29217801]
[1770423988129,0.01,70502.0,70471.0,0.57999999]
[1770423988326,0.14875266,70502.0,70472.0,0.57999999]
[1770423988828,0.14875266,70502.0,70481.0,0.70884468]
[1770423989032,0.14875266,70502.0,70499.0,0.42372409]
[1770423989324,0.07,70502.0,70499.0,0.42372409]
[1770423989529,0.07,70502.0,70484.0,0.014198]
[1770423989724,0.084195,70502.0,70481.0,0.72304368]
[1770423989931,0.084195,70502.0,70485.0,0.70884468]
[1770423989932,0.07,70502.0,70485.0,0.70884468]
[1770423990630,0.26,70502.0,70485.0,0.70884468]
[1770423991930,0.05,70502.0,70485.0,0.70884468]
[1770423992332,0.05,70502.0,70486.0,0.70884468]
[1770423993028,0.25,70502.0,70486.0,0.70884468]
[1770423993533,0.25,70502.0,70487.0,0.70884468]
[1770423993933,0.25,70502.0,70495.0,0.56607567]
[1770423994435,0.1,70517.0,70495.0,0.56607567]
[1770423994633,0.014192,70514.0,70513.0,0.0424693]
[1770423994837,0.014193,70510.0,70498.0,0.98078174]
[1770423995034,0.014194,70508.0,70498.0,0.98078174]
[1770423995232,0.07,70508.0,70498.0,0.56607567]
[1770423995732,0.25,70508.0,70494.0,0.56607567]
[1770423997038,0.11,70523.0,70494.0,0.56607567]
[1770423997232,0.05,70523.0,70494.0,0.56607567]
[1770423998035,0.05,70523.0,70504.0,0.42468753]
[1770423998429,0.19,70523.0,70504.0,0.42468753]
[1770423998937,0.19888835,70523.0,70505.0,0.42468753]
[1770423999237,0.19988835,70523.0,70505.0,0.42468753]
[1770423999938,0.19888835,70523.0,70505.0,0.42468753]
[1770424001137,0.19888835,70523.0,70490.0,0.014197]
[1770424001542,0.43498835,70523.0,70467.0,0.58333333]
[1770424001841,0.43498835,70523.0,70467.0,0.59753533]
[1770424002141,0.43498835,70523.0,70501.0,0.42501919]
[1770424002345,0.43598835,70523.0,70501.0,0.42501919]
[1770424002532,0.2361,70519.0,70483.0,0.70836532]
[1770424002733,0.49498835,70519.0,70483.0,0.70836532]
[1770424003339,0.49498835,70519.0,70477.0,0.70836532]
[1770424003942,0.49598835,70519.0,70477.0,0.70836532]
[1770424004647,0.49598835,70519.0,70474.0,0.35464]
[1770424004940,0.49598835,70519.0,70475.0,0.35464]
[1770424005140,0.49598835,70519.0,70470.0,0.59753433]
[1770424005540,0.49598835,70519.0,70471.0,0.35464]
[1770424005941,0.49598835,70519.0,70472.0,0.35464]
[1770424006135,0.49598835,70519.0,70475.0,0.58333333]
[1770424006335,0.49698835,70519.0,70475.0,0.58333333]
[1770424006542,0.49698835,70519.0,70476.0,0.35464]
[1770424006731,0.49698835,70519.0,70467.0,0.014201]
[1770424006936,0.49698835,70519.0,70468.0,0.35464]
[1770424007437,0.49698835,70519.0,70467.0,0.014201]
[1770424007438,0.49698835,70519.0,70469.0,0.35464]
[1770424007639,0.49698835,70519.0,70474.0,0.58333333]
[1770424008043,0.49698835,70519.0,70475.0,0.35464]
[1770424008243,0.49698835,70519.0,70477.0,0.35421392]
[1770424008446,0.49698835,70519.0,70485.0,0.69729751]
[1770424009546,0.49598835,70519.0,70485.0,0.69729751]
[1770424010348,0.2361,70509.0,70478.0,0.3546]
[1770424010543,0.47498835,70509.0,70478.0,0.3546]
[1770424012046,0.47498835,70509.0,70480.0,0.58333333]
[1770424012450,0.47498835,70509.0,70481.0,0.35464]
[1770424012650,0.47598835,70509.0,70481.0,0.35464]
[1770424013341,0.47498835,70509.0,70481.0,0.35464]
[1770424013547,0.47698835,70509.0,70481.0,0.35464]
[1770424014242,0.47698835,70509.0,70481.0,0.35164]
[1770424014750,0.47698835,70509.0,70481.0,0.34864]
[1770424014950,0.47598835,70509.0,70481.0,0.34864]
[1770424015651,0.47598835,70509.0,70470.0,0.35421392]
[1770424015844,0.47598835,70509.0,70469.0,0.35421392]
[1770424016047,0.47598835,70509.0,70467.0,0.35421392]
[1770424016451,0.47598835,70509.0,70465.0,0.35421392]
[1770424016646,0.47598835,70509.0,70460.0,0.42468262]
[1770424016849,0.47598835,70509.0,70462.0,0.58333333]
[1770424017046,0.47598835,70509.0,70466.0,0.58333333]
[1770424017243,0.47598835,70509.0,70474.0,0.28247239]
[1770424017550,0.47598835,70509.0,70473.0,0.28247239]
[1770424017851,0.47498835,70509.0,70473.0,0.28247239]
[1770424018055,0.47498835,70509.0,70466.0,0.58333333]
[1770424018056,0.47598835,70509.0,70477.0,0.28247239]
[1770424018450,0.47598835,70509.0,70478.0,0.35448059]
[1770424018651,0.47498835,70509.0,70478.0,0.35448059]
[1770424018857,0.47598835,70509.0,70478.0,0.35448059]
[1770424021048,0.47498835,70509.0,70478.0,0.35448059]
[1770424021253,0.47598835,70509.0,70478.0,0.35448059]
[1770424022561,0.47598835,70509.0,70463.0,0.28247239]
[1770424022562,0.14117648,70490.0,70463.0,0.28247239]
[1770424022755,0.40006483,70490.0,70460.0,0.28247239]
[1770424022953,0.40006483,70490.0,70457.0,0.28247239]
[1770424023258,0.40006483,70490.0,70455.0,0.28247239]
[1770424023459,0.40006483,70490.0,70456.0,0.28247239]
[1770424023658,0.40006483,70490.0,70455.0,0.9797699]
[1770424024256,0.40106483,70490.0,70455.0,0.9797699]
[1770424024965,0.40106483,70490.0,70455.0,0.69729751]
[1770424025449,0.40106483,70490.0,70448.0,0.58333333]
[1770424026751,0.40106483,70490.0,70449.0,0.35421392]
[1770424027361,0.40006483,70490.0,70449.0,0.35421392]
[1770424027562,0.40106483,70490.0,70449.0,0.35421392]
[1770424028959,0.40106483,70490.0,70450.0,0.58333333]
[1770424029154,0.25988835,70490.0,70454.0,0.58333333]
[1770424029362,0.25988835,70490.0,70465.0,0.28218879]
[1770424029661,0.25988835,70490.0,70458.0,0.014203]
[1770424029662,0.25988835,70490.0,70467.0,0.58333333]
[1770424030256,0.25988835,70490.0,70468.0,0.86552212]
[1770424031166,0.25988835,70490.0,70469.0,0.28218879]
[1770424031466,0.25888835,70490.0,70469.0,0.86552212]
[1770424031662,0.25888835,70490.0,70470.0,0.58333333]
[1770424036758,0.25888835,70490.0,70471.0,0.58333333]
[1770424037665,0.01688835,70490.0,70473.0,0.58333333]
[1770424037861,0.01688835,70490.0,70474.0,0.58333333]
[1770424038366,0.01688835,70490.0,70483.0,0.69729751]
[1770424038570,0.1,70505.0,70483.0,0.69729751]
[1770424038769,0.02,70505.0,70482.0,1.06851062]
[1770424039069,0.1,70505.0,70482.0,1.06851062]
[1770424039260,0.1492287,70505.0,70482.0,1.42272454]
[1770424039571,0.14117648,70500.0,70471.0,0.56633921]
[1770424039770,0.40117648,70500.0,70458.0,0.49433757]
[1770424039960,0.40117648,70500.0,70452.0,0.49433757]
[1770424040164,0.40117648,70500.0,70450.0,0.49433757]
[1770424040366,0.40117648,70500.0,70450.0,0.28218879]
[1770424040669,0.0017,70451.0,70450.0,0.28218879]
[1770424040868,0.25,70451.0,70450.0,0.28218879]
[1770424041070,0.05,70451.0,70450.0,0.28218879]
[1770424041970,0.05,70451.0,70440.0,0.57417305]
[1770424042174,0.2,70451.0,70440.0,0.57417305]
[1770424042472,0.1,70451.0,70440.0,0.57417305]
[1770424043373,0.1,70451.0,70420.0,0.56633921]
[1770424043374,0.1,70451.0,70421.0,0.57417305]
[1770424043668,0.24,70451.0,70421.0,0.57417305]
[1770424046068,0.47625743,70451.0,70421.0,0.57417305]
[1770424047069,0.24103974,70450.0,70421.0,0.57417305]
[1770424047269,0.24103974,70449.0,70421.0,0.57417305]
[1770424047481,0.49103974,70449.0,70421.0,0.57417305]
[1770424048281,0.24103974,70448.0,70421.0,0.57417305]
[1770424048482,0.48103974,70448.0,70423.0,0.35347963]
[1770424048784,0.24103974,70447.0,70422.0,0.35347963]
[1770424049077,0.24043378,70446.0,70421.0,0.57417305]
[1770424049280,0.24043378,70445.0,70412.0,0.57417305]
[1770424049482,0.24043378,70444.0,70407.0,0.35347963]
[1770424049684,0.24043378,70443.0,70404.0,0.57417305]
[1770424049871,0.24043378,70442.0,70404.0,0.57417305]
[1770424050081,0.24043378,70441.0,70404.0,0.57417305]
[1770424050280,0.24043378,70440.0,70404.0,0.57417305]
[1770424050586,0.24043378,70439.0,70404.0,0.57417305]
[1770424050777,0.24043378,70439.0,70386.0,0.014418]
[1770424050778,0.014212,70417.0,70401.0,0.35347963]
[1770424051086,0.264212,70417.0,70401.0,0.35347963]
[1770424051476,0.25,70417.0,70400.0,0.57417305]
[1770424051978,0.25,70417.0,70407.0,0.28227205]
[1770424052384,0.25,70417.0,70405.0,0.28227205]
[1770424052883,0.1,70432.0,70406.0,0.57417305]
[1770424053082,0.49919198,70422.0,70405.0,0.28227205]
[1770424053383,0.49919198,70416.0,70402.0,0.25171258]
[1770424053684,0.49919198,70416.0,70371.0,0.0002]
[1770424053685,0.58919198,70416.0,70381.0,0.58333333]
[1770424054179,0.26,70416.0,70382.0,0.25171258]
[1770424054581,0.014216,70396.0,70383.0,0.25171258]
[1770424054781,0.244216,70396.0,70382.0,0.25171258]
[1770424054983,0.014217,70394.0,70381.0,0.81523471]
[1770424055288,0.014217,70391.0,70382.0,0.23190138]
[1770424055486,0.264217,70391.0,70373.0,0.58045349]
[1770424055690,0.264217,70391.0,70374.0,0.23190138]
[1770424055886,0.25,70391.0,70374.0,0.23190138]
[1770424056088,0.25,70391.0,70375.0,0.23190138]
[1770424056290,0.25,70391.0,70377.0,0.58045349]
[1770424056491,0.1,70406.0,70377.0,0.58045349]
[1770424056690,0.014216,70399.0,70377.0,0.58045349]
[1770424056891,0.084216,70399.0,70379.0,0.56329347]
[1770424057287,0.084216,70399.0,70381.0,0.56329347]
[1770424057592,0.254216,70399.0,70381.0,0.56329347]
[1770424057793,0.254216,70399.0,70383.0,0.56329347]
[1770424058185,0.014216,70397.0,70384.0,0.23190138]
[1770424058388,0.014216,70397.0,70383.0,0.72891985]
[1770424058389,0.22,70397.0,70383.0,0.72891985]
[1770424058590,0.22,70397.0,70357.0,0.0002]
[1770424058591,0.59752554,70397.0,70384.0,0.15456438]
[1770424058892,0.59752554,70397.0,70375.0,0.56329347]
[1770424059188,0.59752554,70397.0,70376.0,0.71785785]
[1770424059392,0.22,70397.0,70377.0,0.56329347]
[1770424059597,0.09,70397.0,70377.0,0.56329347]
[1770424059788,0.014214,70407.0,70379.0,0.56329347]
[1770424060090,0.014215,70403.0,70379.0,0.56329347]
[1770424060293,0.07,70403.0,70381.0,0.56329347]
[1770424060488,0.06,70418.0,70381.0,0.57751247]
[1770424060796,0.22,70418.0,70383.0,0.56329347]
[1770424061187,0.001,70403.0,70385.0,0.56329347]
[1770424061389,0.231,70403.0,70385.0,0.56329347]
[1770424061695,0.231,70403.0,70387.0,0.56329347]
[1770424062190,0.231,70403.0,70389.0,0.56329347]
[1770424062694,0.231,70403.0,70391.0,0.56329347]
[1770424063196,0.231,70403.0,70392.0,0.15456438]
[1770424063398,0.55175961,70402.0,70374.0,0.56329347]
[1770424063587,0.55175961,70401.0,70374.0,0.56329347]
[1770424063792,0.55175961,70401.0,70358.0,0.56329347]
[1770424063793,0.55175961,70400.0,70358.0,0.56329347]
[1770424064096,0.55175961,70399.0,70358.0,0.56329347]
[1770424064295,0.55175961,70398.0,70358.0,0.56329347]
[1770424064492,0.55175961,70397.0,70358.0,0.56329347]
[1770424064691,0.55175961,70385.0,70358.0,0.56329347]
[1770424064997,0.79175961,70385.0,70358.0,0.56329347]
[1770424065195,0.014219,70380.0,70358.0,0.56329347]
[1770424065394,0.264219,70380.0,70358.0,0.56329347]
[1770424065892,0.25,70380.0,70358.0,0.56329347]
[1770424066091,0.55175961,70374.0,70349.0,0.56329347]
[1770424066393,0.014223,70362.0,70340.0,0.56349347]
[1770424066597,0.014223,70359.0,70340.0,0.56329347]
[1770424066797,0.264223,70359.0,70340.0,0.56329347]
[1770424067504,0.264223,70359.0,70315.0,0.00014388]
[1770424067505,0.014227,70341.0,70321.0,0.56329347]
[1770424067687,0.24,70341.0,70312.0,0.56329347]
[1770424068692,0.241,70341.0,70312.0,0.56329347]
[1770424068893,0.55175961,70340.0,70312.0,0.56329347]
[1770424069198,0.55175961,70339.0,70312.0,0.56329347]
[1770424069401,0.014229,70331.0,70312.0,0.56329347]
[1770424069702,0.284229,70331.0,70295.0,0.56329347]
[1770424069892,0.01423,70328.0,70295.0,0.56329347]
[1770424070094,0.25423,70328.0,70295.0,0.56329347]
[1770424070703,0.24,70328.0,70295.0,0.56329347]
[1770424070901,0.24,70328.0,70296.0,0.014236]
[1770424071199,0.241,70328.0,70302.0,0.56329347]
[1770424071400,0.1,70343.0,70309.0,0.56329347]
[1770424071600,0.044227,70343.0,70309.0,0.56329347]
[1770424071898,0.001,70328.0,70311.0,0.56329347]
[1770424072096,0.12,70343.0,70319.0,0.56329347]
[1770424072292,0.07,70343.0,70319.0,0.56329347]
[1770424072497,0.0697,70343.0,70323.0,0.014231]
[1770424072700,0.014224,70356.0,70324.0,0.56329347]
[1770424072896,0.04,70356.0,70335.0,0.56329347]
[1770424073101,0.55175961,70380.0,70341.0,0.56329347]
[1770424073299,0.68451961,70373.0,70341.0,0.56329347]
[1770424073499,0.014223,70363.0,70341.0,0.56329347]
[1770424073699,0.07,70363.0,70341.0,0.56329347]
[1770424074007,0.07,70363.0,70327.0,0.56329347]
[1770424074206,0.014224,70355.0,70327.0,0.56329347]
[1770424074409,0.1,70355.0,70327.0,0.56329347]
[1770424074712,0.55175961,70346.0,70318.0,0.0002]
[1770424075001,0.014228,70338.0,70317.0,0.56329347]
[1770424075206,0.1,70338.0,70317.0,0.56329347]
[1770424075506,0.014228,70337.0,70317.0,0.56329347]
[1770424075709,0.264228,70337.0,70317.0,0.56329347]
[1770424076105,0.25,70337.0,70317.0,0.56329347]
[1770424078002,0.05,70337.0,70317.0,0.56329347]
[1770424078204,0.11,70352.0,70317.0,0.56329347]
[1770424078504,0.014226,70349.0,70317.0,0.56329347]
[1770424078708,0.07,70349.0,70317.0,0.56329347]
[1770424078910,0.07,70349.0,70320.0,0.56329347]
[1770424079209,0.25,70349.0,70320.0,0.56329347]
[1770424080304,0.25,70349.0,70310.0,0.0002]
[1770424080305,0.25,70349.0,70322.0,0.56329347]
[1770424080502,0.25,70349.0,70329.0,0.56329347]
[1770424080708,0.02,70364.0,70349.0,0.56329347]